bitfinex-derivatives/quotes_ETHF0:USTF0_20240922
["timestamp","ask_amount","ask_price","bid_price","bid_amount"]
[1726963393541,3.122,2617.9,2617.5,1.6927]
[1726963393741,3.50393,2617.9,2617.6,2.98]
[1726963393945,0.38194,2617.8,2617.5,1.6927]
[1726963394152,3.2078,2617.7,2617.2,3.4031]
[1726963394442,0.382,2617.4,2617.2,3.4031]
[1726963394649,3.2078,2617.7,2617.2,3.4031]
[1726963394849,0.382,2617.4,2617.2,3.4031]
[1726963395046,3.2078,2617.7,2617.2,3.4031]
[1726963395552,0.38201,2617.3,2617.0,1.6927]
[1726963395754,3.5898,2617.4,2617.0,5.135]
[1726963396045,3.2078,2617.7,2616.9,2.98]
[1726963396252,0.38201,2617.4,2617.0,1.7661]
[1726963396448,3.2078,2617.7,2617.0,1.7661]
[1726963396449,0.38199,2617.5,2617.0,1.7661]
[1726963397068,0.38197,2617.7,2617.2,2.98]
[1726963397244,0.38197,2617.7,2617.3,1.7732]
[1726963397546,4.7764,2617.9,2617.5,2.98]
[1726963397547,3.122,2617.9,2617.5,2.98]
[1726963397752,3.122,2617.9,2617.6,1.7907]
[1726963398245,3.122,2617.9,2617.7,1.7732]
[1726963398246,0.38194,2617.8,2617.7,1.7732]
[1726963398850,3.50393,2617.9,2617.7,1.7732]
[1726963399054,3.122,2617.9,2617.7,1.7732]
[1726963399237,3.50392,2617.9,2617.7,1.7732]
[1726963399438,3.58972,2618.0,2617.7,1.7732]
[1726963400355,0.95452,2618.8,2617.9,2.98]
[1726963400556,0.38186,2618.4,2618.0,1.7867]
[1726963400749,0.38186,2618.4,2618.1,1.7702]
[1726963401246,7.6287,2618.7,2618.1,1.7702]
[1726963401247,0.38187,2618.3,2618.1,1.7702]
[1726963402347,3.122,2618.6,2618.1,1.7702]
[1726963402544,0.38184,2618.5,2618.2,1.6215]
[1726963403146,0.38186,2618.4,2618.2,1.6215]
[1726963403342,0.38184,2618.5,2618.2,1.6215]
[1726963403557,3.122,2618.6,2618.2,1.6215]
[1726963403760,0.38184,2618.5,2618.2,1.6215]
[1726963404247,0.38184,2618.5,2618.1,1.7702]
[1726963404248,3.2078,2618.4,2618.1,1.7702]
[1726963404552,0.38185,2618.5,2618.1,1.7702]
[1726963404754,0.38184,2618.5,2618.1,1.7702]
[1726963405450,3.122,2618.6,2618.1,1.7702]
[1726963405749,8.80852,2618.8,2618.2,2.98]
[1726963405750,7.996,2618.8,2618.2,2.98]
[1726963405955,6.3298,2618.8,2618.3,1.6821]
[1726963406461,0.38182,2618.7,2618.4,1.7227]
[1726963406847,0.38181,2618.7,2618.4,1.7227]
[1726963407354,0.38181,2618.7,2618.5,1.7816]
[1726963407549,6.7116,2618.8,2618.5,1.7816]
[1726963407754,0.38182,2618.7,2618.5,1.7816]
[1726963408357,3.2078,2619.2,2618.6,3.8192]
[1726963408650,3.121,2619.4,2618.7,2.98]
[1726963408958,0.38172,2619.3,2618.7,2.98]
[1726963409154,0.38174,2619.2,2618.8,0.38179]
[1726963409358,0.38173,2619.3,2618.7,2.98]
[1726963409557,0.38171,2619.4,2619.0,2.98]
[1726963409753,3.2078,2619.8,2619.2,2.98]
[1726963409754,4.16193,2619.8,2619.2,2.98]
[1726963409951,0.38167,2619.7,2619.5,2.98]
[1726963410266,0.38167,2619.7,2619.6,1.6725]
[1726963411259,0.3817,2619.5,2619.1,3.4147]
[1726963411558,4.16193,2619.8,2619.2,1.7863]
[1726963411754,0.3817,2619.5,2619.2,1.7863]
[1726963412151,0.38168,2619.6,2619.2,1.7863]
[1726963412348,3.2078,2619.8,2619.2,1.7863]
[1726963412553,0.38167,2619.7,2619.2,1.7863]
[1726963412854,0.38168,2619.6,2619.2,1.7863]
[1726963413055,3.2078,2619.8,2619.2,1.7863]
[1726963413255,0.38168,2619.6,2619.2,1.7863]
[1726963413457,0.38169,2619.5,2619.2,1.7863]
[1726963413848,0.38171,2619.4,2619.2,1.7863]
[1726963414052,2.9899,2619.7,2619.2,1.7863]
[1726963414448,0.3817,2619.5,2619.2,1.7863]
[1726963414873,3.2078,2619.8,2619.3,2.98]
[1726963415049,0.38165,2619.8,2619.3,4.652]
[1726963416159,3.121,2619.9,2619.3,4.652]
[1726963416458,3.50264,2619.9,2619.5,3.2078]
[1726963416663,3.121,2619.9,2619.5,3.2078]
[1726963416957,3.50264,2619.9,2619.5,3.2078]
[1726963417360,0.38165,2619.8,2619.5,3.2078]
[1726963417558,3.121,2619.9,2619.5,3.2078]
[1726963417559,0.38164,2619.9,2619.5,3.2078]
[1726963417755,3.2078,2620.2,2619.7,0.38165]
[1726963417955,0.38157,2620.4,2619.8,4.99314]
[1726963418178,3.2078,2620.5,2619.9,3.5402]
[1726963418351,0.38156,2620.4,2619.9,3.5402]
[1726963418551,0.38157,2620.4,2619.9,3.5402]
[1726963418767,0.38159,2620.2,2619.9,3.5402]
[1726963418956,0.38157,2620.4,2619.9,3.5402]
[1726963419155,0.38157,2620.3,2619.9,3.5402]
[1726963419658,3.2078,2620.5,2619.9,3.5402]
[1726963419862,0.38156,2620.4,2619.9,3.5402]
[1726963420158,0.38157,2620.3,2619.9,3.5402]
[1726963420949,3.2078,2620.5,2619.9,3.5402]
[1726963421149,0.38159,2620.2,2619.9,3.5402]
[1726963421361,3.2078,2620.5,2619.9,3.5402]
[1726963421568,0.38157,2620.4,2619.9,3.92183]
[1726963421761,3.2078,2620.5,2619.9,3.5402]
[1726963421762,0.38158,2620.3,2619.9,3.5402]
[1726963421951,0.38157,2620.4,2619.9,3.5402]
[1726963422155,0.38156,2620.4,2619.9,3.5402]
[1726963422365,3.58935,2620.5,2619.9,3.5402]
[1726963422662,3.2078,2620.5,2620.1,2.98]
[1726963422853,3.58935,2620.5,2620.1,2.98]
[1726963423258,3.2078,2620.5,2620.1,2.98]
[1726963423659,3.58935,2620.5,2620.1,2.98]
[1726963423966,3.2078,2620.5,2620.1,3.3616]
[1726963424167,3.58935,2620.5,2620.1,2.98]
[1726963424367,3.2078,2620.5,2620.1,6.5694]
[1726963424571,3.2078,2620.7,2620.1,6.56939]
[1726963424862,4.06475,2620.9,2620.1,2.98]
[1726963425060,0.38155,2620.5,2620.3,2.98]
[1726963425259,0.95376,2620.8,2620.4,1.7586]
[1726963425464,0.38154,2620.5,2620.4,3.5396]
[1726963426165,3.2078,2621.0,2620.4,3.5396]
[1726963426365,4.16141,2621.3,2620.8,2.98]
[1726963426559,4.16141,2621.3,2620.9,1.7785]
[1726963426560,0.38147,2621.0,2620.9,1.7785]
[1726963427067,4.19667,2621.0,2620.9,1.7785]
[1726963427368,0.38147,2621.0,2620.9,1.7785]
[1726963427664,0.38146,2621.1,2620.9,1.7785]
[1726963427862,6.3188,2621.3,2620.9,1.7785]
[1726963427863,3.2078,2621.3,2620.9,1.7785]
[1726963428269,0.38146,2621.1,2620.9,1.7785]
[1726963429166,0.38147,2621.0,2620.9,1.7785]
[1726963429471,0.38147,2621.0,2620.5,4.9744]
[1726963429472,0.3815,2620.8,2620.5,1.7666]
[1726963429667,0.38152,2620.7,2620.5,1.6376]
[1726963429970,3.2078,2621.0,2620.5,1.6376]
[1726963429971,2.9284,2620.9,2620.5,1.6376]
[1726963430157,0.38152,2620.7,2620.5,1.6376]
[1726963430673,2.9284,2620.9,2620.5,1.6376]
[1726963430971,0.38153,2620.6,2620.5,1.6376]
[1726963432162,4.76983,2620.6,2619.9,7.8531]
[1726963432358,5.9084,2620.9,2619.9,7.8531]
[1726963432359,0.38157,2620.4,2620.0,3.4249]
[1726963432958,0.38158,2620.3,2620.0,3.4249]
[1726963433161,3.58935,2620.5,2620.0,3.4249]
[1726963433474,0.38157,2620.4,2620.0,3.4249]
[1726963433670,3.58935,2620.5,2620.0,3.4249]
[1726963434268,0.38156,2620.4,2620.0,3.4249]
[1726963434760,0.3816,2620.2,2620.0,3.4249]
[1726963434965,6.3178,2620.6,2620.0,3.4249]
[1726963435361,3.58938,2620.3,2620.0,3.4249]
[1726963435564,6.3178,2620.6,2620.0,3.4249]
[1726963435766,3.2078,2620.6,2620.2,2.98]
[1726963435973,0.38155,2620.5,2620.3,1.7829]
[1726963436472,3.2078,2620.6,2620.3,1.7829]
[1726963436473,0.38156,2620.4,2620.3,1.7829]
[1726963437576,0.9539,2620.4,2620.0,3.4249]
[1726963437963,0.38158,2620.3,2620.0,3.4249]
[1726963438165,1.2946,2620.5,2620.0,3.4249]
[1726963438364,0.3816,2620.1,2620.0,3.4249]
[1726963438662,2.7463,2620.4,2620.0,3.4249]
[1726963438967,0.3816,2620.1,2620.0,3.4249]
[1726963440974,3.8168,2620.1,2619.6,1.64]
[1726963441167,3.8168,2620.1,2618.8,6.794]
[1726963441168,0.38169,2619.5,2619.4,1.7945]
[1726963441367,3.2078,2619.7,2619.4,1.7945]
[1726963441570,0.38169,2619.5,2619.4,1.7945]
[1726963442274,0.3817,2619.4,2619.3,1.6698]
[1726963442674,3.5895,2619.4,2619.3,1.6698]
[1726963442974,3.5895,2619.4,2618.7,1.7278]
[1726963442975,0.38177,2619.0,2618.7,4.7078]
[1726963443172,0.38178,2619.0,2618.8,1.6411]
[1726963443378,3.58956,2619.1,2618.8,1.6411]
[1726963443566,3.58956,2619.1,2619.0,2.98]
[1726963443567,3.2078,2619.1,2619.0,2.98]
[1726963446674,6.3188,2619.9,2619.0,6.7984]
[1726963446973,3.49264,2619.9,2619.3,2.98]
[1726963447177,6.0226,2620.0,2619.3,2.98]
[1726963447384,0.38164,2619.9,2619.4,3.2078]
[1726963447580,0.38165,2619.8,2619.4,3.2078]
[1726963447878,1.295,2620.0,2619.7,2.98]
[1726963448183,0.38157,2620.3,2619.9,2.98]
[1726963448384,3.2078,2620.4,2619.9,2.98]
[1726963448385,0.38159,2620.2,2619.9,2.98]
[1726963448584,3.2078,2620.4,2619.9,2.98]
[1726963448785,1.6246,2620.5,2619.9,2.98]
[1726963449484,0.38159,2620.2,2619.9,2.98]
[1726963449778,0.3816,2620.1,2619.9,2.98]
[1726963449983,0.3816,2620.2,2619.8,3.297]
[1726963450183,0.38161,2620.1,2619.9,1.7535]
[1726963450488,0.3816,2620.2,2619.9,1.7535]
[1726963450982,0.38162,2620.1,2619.9,1.7535]
[1726963451187,6.3108,2620.4,2619.9,1.7535]
[1726963451188,0.3816,2620.2,2619.9,1.7535]
[1726963451377,0.38161,2620.1,2619.9,1.7535]
[1726963451778,6.3108,2620.4,2619.8,1.6358]
[1726963452283,0.3816,2620.1,2619.9,1.7522]
[1726963452473,0.38161,2620.1,2619.9,1.7522]
[1726963452673,1.6246,2620.5,2619.9,1.7522]
[1726963452887,0.38157,2620.4,2619.9,4.7322]
[1726963453084,3.48357,2620.4,2619.9,4.7322]
[1726963453277,5.10815,2620.5,2619.9,4.7322]
[1726963453584,0.38156,2620.4,2619.9,4.7322]
[1726963454486,1.7661,2620.6,2620.2,2.98]
[1726963454680,0.38155,2620.5,2620.3,3.3663]
[1726963454990,0.38154,2620.5,2620.3,3.3663]
[1726963455180,0.38156,2620.4,2620.3,3.3663]
[1726963455578,0.38155,2620.5,2620.3,3.3663]
[1726963456473,2.14764,2620.6,2620.3,3.3663]
[1726963456682,1.7661,2620.6,2620.4,1.7649]
[1726963456876,3.48352,2620.7,2620.4,1.7649]
[1726963457073,0.38153,2620.6,2620.4,1.7649]
[1726963457283,3.48352,2620.7,2620.4,1.7649]
[1726963457474,0.38152,2620.7,2620.4,1.7649]
[1726963457678,4.8228,2620.8,2620.4,4.7449]
[1726963457679,0.38151,2620.8,2620.4,4.7449]
[1726963457982,5.24209,2620.9,2620.4,4.7449]
[1726963458188,1.7586,2620.9,2620.4,4.7449]
[1726963458482,0.38148,2621.0,2620.4,4.7449]
[1726963458483,3.102,2621.0,2620.4,4.7449]
[1726963458880,0.3815,2620.8,2620.4,4.7449]
[1726963460583,0.3815,2620.8,2620.4,1.7649]
[1726963460784,3.102,2621.0,2620.4,1.7649]
[1726963460988,3.82632,2620.7,2620.4,1.7649]
[1726963462889,0.38149,2620.9,2620.6,3.2078]
[1726963463486,5.1099,2621.2,2620.6,3.2078]
[1726963463686,0.38149,2620.9,2620.6,3.2078]
[1726963464483,0.38147,2621.1,2620.7,2.98]
[1726963464681,3.48347,2621.1,2620.8,3.3578]
[1726963464883,10.24345,2621.1,2620.6,3.2078]
[1726963465086,0.38152,2620.7,2620.6,3.2078]
[1726963465593,4.19752,2620.7,2620.6,3.2078]
[1726963468189,0.38154,2620.6,2620.1,7.8113]
[1726963468391,3.2078,2620.8,2620.3,2.98]
[1726963468697,0.38152,2620.7,2620.3,6.1878]
[1726963469291,0.38151,2620.8,2620.6,2.98]
[1726963469691,0.38151,2620.8,2620.7,1.7857]
[1726963471799,3.4598,2621.2,2620.7,1.7857]
[1726963471994,3.84125,2621.2,2620.8,1.6754]
[1726963472200,0.38146,2621.1,2620.8,1.6754]
[1726963472598,3.4598,2621.2,2620.8,1.6754]
[1726963472800,3.84125,2621.2,2620.8,1.6754]
[1726963473103,0.38147,2621.0,2620.8,1.6754]
[1726963473300,0.95369,2621.0,2620.2,3.2078]
[1726963473506,0.95369,2621.0,2620.3,1.6754]
[1726963473507,0.38154,2620.6,2620.3,1.6754]
[1726963474198,0.38156,2620.5,2620.3,1.6754]
[1726963474404,3.2922,2620.7,2620.3,1.6754]
[1726963474707,3.2922,2620.7,2620.1,2.98]
[1726963474998,0.38161,2620.1,2620.0,1.6604]
[1726963475489,3.102,2620.3,2620.0,1.6604]
[1726963475894,3.102,2620.3,2620.1,2.98]
[1726963476095,3.102,2620.3,2620.2,1.7607]
[1726963476304,3.102,2620.3,2620.2,3.3795]
[1726963477298,0.38154,2620.6,2620.2,3.3795]
[1726963477497,3.67372,2620.7,2620.4,2.98]
[1726963477792,3.67372,2620.7,2620.5,1.6768]
[1726963477793,0.38153,2620.6,2620.5,1.6768]
[1726963478597,3.67372,2620.7,2620.5,1.6768]
[1726963478796,0.38153,2620.6,2620.5,1.6768]
[1726963479298,0.38154,2620.6,2620.4,1.7172]
[1726963479497,3.2922,2620.7,2620.4,1.7172]
[1726963479699,0.38153,2620.6,2620.4,1.7172]
[1726963479899,0.38154,2620.5,2620.4,1.7172]
[1726963480198,0.38154,2620.5,2620.2,10.9421]
[1726963480199,0.38157,2620.4,2620.2,10.9421]
[1726963480503,3.2922,2620.7,2620.2,7.7343]
[1726963480504,0.38157,2620.3,2620.2,7.7343]
[1726963480703,0.38157,2620.3,2620.2,4.2903]
[1726963480910,4.19837,2620.3,2620.2,2.6715]
[1726963481797,0.38157,2620.4,2620.2,2.6715]
[1726963481999,0.38157,2620.3,2620.2,2.6715]
[1726963482306,4.43051,2620.3,2620.2,2.6715]
[1726963482505,14.24731,2620.3,2620.2,2.6715]
[1726963482892,14.24731,2620.3,2620.2,4.1113]
[1726963483109,13.29337,2620.3,2620.2,4.1113]
[1726963483300,3.2078,2620.5,2620.2,4.1113]
[1726963483498,3.095,2620.5,2620.2,9.2538]
[1726963483697,3.47655,2620.5,2620.2,9.2538]
[1726963483994,0.38155,2620.5,2620.2,9.2538]
[1726963484395,0.38156,2620.4,2620.2,9.2538]
[1726963484602,6.3028,2620.6,2620.2,9.2538]
[1726963485403,0.38154,2620.5,2620.2,9.2538]
[1726963486307,6.3028,2620.6,2620.2,7.5912]
[1726963486507,0.38156,2620.4,2620.2,7.5912]
[1726963486896,4.19756,2620.4,2620.2,7.5912]
[1726963487711,4.19757,2620.4,2620.2,4.1113]
[1726963488316,0.38157,2620.4,2620.2,4.1113]
[1726963488612,4.19757,2620.4,2620.2,4.1113]
[1726963488910,0.38157,2620.4,2620.2,4.1113]
[1726963489703,4.19757,2620.4,2620.2,4.1113]
[1726963490309,0.38157,2620.4,2620.2,4.1113]
[1726963490510,4.19757,2620.4,2620.2,4.1113]
[1726963490808,0.38157,2620.3,2620.2,4.1113]
[1726963491113,3.816,2620.4,2620.2,4.1113]
[1726963491410,0.38157,2620.4,2620.2,4.1113]
[1726963493409,0.38157,2620.3,2620.2,4.1113]
[1726963494308,14.36011,2620.3,2620.2,4.1113]
[1726963494513,13.40617,2620.3,2620.2,4.1113]
[1726963496011,4.19837,2620.3,2620.2,4.1113]
[1726963496712,7.29437,2620.3,2620.2,4.1113]
[1726963497517,0.38157,2620.3,2620.2,7.4327]
[1726963497812,0.38157,2620.4,2620.2,9.1948]
[1726963498011,6.3038,2620.6,2620.2,9.1948]
[1726963498012,0.38157,2620.3,2620.2,9.1948]
[1726963501302,8.36011,2620.3,2620.2,4.1113]
[1726963501914,7.40617,2620.3,2620.2,4.1113]
[1726963502303,4.19837,2620.3,2620.2,4.1113]
[1726963502509,9.16877,2620.3,2620.2,4.1113]
[1726963503208,15.16877,2620.3,2620.2,4.1113]
[1726963503829,16.12271,2620.3,2620.2,4.1113]
[1726963504610,16.12271,2620.3,2620.2,5.8287]
[1726963505805,3.2078,2620.3,2620.2,5.8287]
[1726963506009,3.58934,2620.6,2620.2,5.8287]
[1726963506220,3.58934,2620.6,2620.3,1.7204]
[1726963506421,3.2078,2620.6,2620.4,2.98]
[1726963506616,1.6968,2621.3,2620.5,0.38154]
[1726963506617,1.705,2621.2,2620.5,0.38154]
[1726963506817,3.2078,2621.5,2620.9,2.98]
[1726963506818,3.096,2621.4,2620.9,2.98]
[1726963507019,4.8894,2621.5,2620.9,2.98]
[1726963507020,0.38144,2621.3,2621.0,1.7531]
[1726963507324,3.47044,2621.3,2621.0,3.4735]
[1726963507518,3.47043,2621.3,2621.0,3.4735]
[1726963507819,4.8894,2621.5,2621.0,3.4735]
[1726963508119,4.8894,2621.5,2621.2,4.4195]
[1726963508120,3.089,2621.4,2621.2,4.4195]
[1726963510524,3.2078,2621.5,2621.2,4.4195]
[1726963510724,3.2078,2621.9,2621.4,2.98]
[1726963510933,0.3813,2622.2,2621.7,2.98]
[1726963511230,0.3813,2622.2,2621.8,1.776]
[1726963511231,3.089,2622.2,2621.8,1.776]
[1726963511923,3.089,2622.3,2621.9,6.1878]
[1726963512127,3.089,2622.3,2622.0,3.2078]
[1726963512422,3.089,2622.5,2622.0,3.2078]
[1726963512621,3.089,2622.5,2622.1,1.7192]
[1726963512821,0.3813,2622.2,2621.8,1.776]
[1726963513630,3.4693,2622.2,2621.8,1.776]
[1726963514318,0.38131,2622.1,2621.8,1.776]
[1726963514517,3.088,2622.2,2621.8,1.776]
[1726963514722,0.38132,2622.1,2621.8,1.776]
[1726963515019,3.088,2622.2,2621.8,1.776]
[1726963515222,3.8136,2622.1,2621.7,1.7192]
[1726963515421,0.38137,2621.8,2621.4,3.2078]
[1726963515624,3.46938,2621.7,2621.4,3.2078]
[1726963515930,3.088,2621.7,2621.4,3.2078]
[1726963516233,3.088,2622.2,2621.4,10.0022]
[1726963516425,3.088,2622.2,2621.4,6.1878]
[1726963516726,0.38132,2622.1,2621.4,6.1878]
[1726963516931,0.38133,2622.0,2621.4,6.1878]
[1726963517426,6.2958,2622.2,2621.4,3.2078]
[1726963517427,0.38136,2621.8,2621.4,3.2078]
[1726963517624,0.38137,2621.8,2621.4,3.2078]
[1726963518715,0.38136,2621.8,2621.4,3.2078]
[1726963519327,0.38137,2621.7,2621.5,1.7165]
[1726963519721,0.38136,2621.8,2621.5,1.7165]
[1726963520630,3.58914,2621.9,2621.5,1.7165]
[1726963520828,0.38136,2621.8,2621.5,1.7165]
[1726963521035,0.38132,2622.1,2621.5,1.7165]
[1726963521229,3.46932,2622.1,2621.5,1.7165]
[1726963521531,0.38133,2622.0,2621.5,1.7165]
[1726963521725,6.9024,2622.1,2621.5,1.7165]
[1726963521925,1.7255,2621.9,2621.5,1.7165]
[1726963522127,0.38136,2621.8,2621.5,1.7165]
[1726963522718,3.088,2622.1,2621.5,1.7165]
[1726963522719,3.2078,2622.2,2621.5,1.7165]
[1726963522923,3.088,2622.1,2621.5,1.7165]
[1726963523836,0.38133,2622.0,2621.5,1.7165]
[1726963524129,3.088,2621.9,2621.5,1.7165]
[1726963524826,3.46935,2621.9,2621.5,1.7165]
[1726963525236,3.088,2621.9,2621.5,1.7165]
[1726963526828,3.088,2621.9,2621.6,3.2078]
[1726963527030,3.46934,2621.9,2621.6,3.2078]
[1726963527231,3.46934,2621.9,2621.5,1.7165]
[1726963527431,3.088,2621.9,2621.5,1.7165]
[1726963527732,0.38137,2621.7,2621.5,1.7165]
[1726963528133,0.38138,2621.6,2621.5,1.7165]
[1726963528327,3.46938,2621.6,2621.5,1.7165]
[1726963528532,7.28378,2621.6,2621.5,1.7165]
[1726963529237,3.8144,2621.6,2621.5,1.7165]
[1726963529546,1.7742,2621.9,2621.5,1.7165]
[1726963529547,4.8622,2621.9,2621.5,1.7165]
[1726963529837,0.38136,2621.8,2621.5,1.7165]
[1726963530631,3.46936,2621.8,2621.5,1.7165]
[1726963531035,3.088,2621.8,2621.5,1.7165]
[1726963531342,3.088,2621.9,2621.5,4.6965]
[1726963531534,4.9739,2622.2,2621.6,3.2078]
[1726963531535,3.46932,2622.1,2621.6,3.2078]
[1726963531735,3.088,2622.1,2621.7,1.6781]
[1726963531938,3.088,2622.1,2621.8,1.6684]
[1726963532152,3.088,2622.1,2621.8,3.3812]
[1726963532340,3.46931,2622.1,2621.8,3.3812]
[1726963532639,3.088,2622.1,2621.8,3.3812]
[1726963532843,3.2078,2622.2,2621.9,2.6698]
[1726963533549,3.088,2622.4,2621.9,5.8776]
[1726963533856,3.2078,2622.7,2621.9,5.8776]
[1726963534149,0.38127,2622.4,2621.9,5.8776]
[1726963534742,4.8462,2622.7,2621.9,5.8776]
[1726963534743,3.46927,2622.5,2621.9,5.8776]
[1726963535138,0.38127,2622.4,2621.9,5.8776]
[1726963535342,3.088,2622.5,2621.9,5.8776]
[1726963535343,0.38132,2622.1,2621.9,5.8776]
[1726963535939,0.38133,2622.0,2621.9,2.6698]
[1726963536148,1.7258,2622.2,2621.9,2.6698]
[1726963536744,0.38131,2622.1,2621.9,2.6698]
[1726963537748,5.1891,2622.2,2621.9,2.6698]
[1726963538449,0.38132,2622.1,2621.9,2.6698]
[1726963539046,5.18911,2622.2,2621.9,2.6698]
[1726963539243,0.38131,2622.1,2621.9,2.6698]
[1726963539644,5.1891,2622.2,2622.0,1.4394]
[1726963539948,3.4633,2622.2,2622.0,1.4394]
[1726963540150,3.46331,2622.2,2622.0,1.4394]
[1726963540345,0.38131,2622.1,2622.0,1.4394]
[1726963541755,3.4633,2622.2,2622.0,1.4394]
[1726963542548,1.6302,2622.5,2622.0,7.6272]
[1726963542549,2.01146,2622.5,2622.0,7.6272]
[1726963542853,5.09346,2622.5,2622.0,4.4194]
[1726963543146,0.38127,2622.4,2622.0,4.4194]
[1726963543754,2.12877,2622.4,2622.0,4.4194]
[1726963544859,2.12877,2622.4,2622.0,1.4394]
[1726963544860,3.2078,2622.3,2622.0,1.4394]
[1726963545043,0.38131,2622.1,2622.0,1.4394]
[1726963545654,4.19491,2622.1,2622.0,1.4394]
[1726963545949,0.38131,2622.1,2622.0,1.4394]
[1726963546454,3.082,2622.1,2622.0,1.4394]
[1726963546753,3.46331,2622.1,2622.0,1.4394]
[1726963547344,14.2302,2622.1,2622.0,1.4394]
[1726963547646,14.2302,2622.1,2621.2,3.2078]
[1726963547647,0.38133,2622.0,2621.2,3.2078]
[1726963547851,3.2078,2621.5,2621.0,3.4115]
[1726963548050,0.38146,2621.1,2621.0,5.1284]
[1726963548551,0.38145,2621.2,2621.0,5.1284]
[1726963548751,0.38144,2621.3,2621.0,5.1284]
[1726963548960,3.082,2621.4,2621.0,5.1284]
[1726963549142,0.38145,2621.2,2621.0,5.1284]
[1726963549353,0.38146,2621.1,2621.0,5.1284]
[1726963549548,0.38145,2621.2,2621.0,6.3567]
[1726963549851,0.38146,2621.1,2621.0,6.3567]
[1726963550061,0.38145,2621.2,2621.0,6.3567]
[1726963550444,0.38146,2621.1,2621.0,6.3567]
[1726963550645,0.38146,2621.1,2621.0,2.9452]
[1726963550951,4.19666,2621.1,2621.0,2.9452]
[1726963551660,11.15031,2621.1,2621.0,1e-05]
[1726963551951,3.46346,2621.1,2621.0,1e-05]
[1726963552354,13.27866,2621.1,2621.0,1e-05]
[1726963552543,14.54426,2621.1,2621.0,1e-05]
[1726963552749,15.49791,2621.1,2621.0,1e-05]
[1726963555050,14.54426,2621.1,2621.0,1e-05]
[1726963555456,15.49791,2621.1,2621.0,1e-05]
[1726963557361,5.46226,2621.1,2621.0,1e-05]
[1726963557555,8.54426,2621.1,2621.0,1e-05]
[1726963558660,6.41591,2621.1,2621.0,1e-05]
[1726963558860,9.49891,2621.1,2621.0,1e-05]
[1726963559058,15.49891,2621.1,2621.0,1e-05]
[1726963559658,5.46226,2621.1,2621.0,1e-05]
[1726963559860,8.54526,2621.1,2621.0,1e-05]
[1726963560361,12.41591,2621.1,2621.0,1e-05]
[1726963560560,15.49891,2621.1,2621.0,1e-05]
[1726963561453,15.49891,2621.1,2619.5,3.2078]
[1726963561454,3.8152,2621.0,2619.5,3.2078]
[1726963561658,6.1878,2620.1,2619.7,5.0825]
[1726963561858,0.38165,2619.8,2619.7,5.0825]
[1726963562793,3.083,2619.8,2619.7,5.0825]
[1726963563458,3.2078,2620.1,2619.7,8.8993]
[1726963563661,4.2487,2620.8,2619.8,3.8168]
[1726963563868,0.38157,2620.4,2619.7,11.2703]
[1726963564058,0.38155,2620.5,2619.7,11.2703]
[1726963564363,0.38156,2620.4,2620.0,3.2078]
[1726963564561,0.38156,2620.4,2619.7,11.2703]
[1726963564867,1.11145,2621.4,2620.3,3.2078]
[1726963564868,3.083,2620.7,2620.3,3.2078]
[1726963565054,3.083,2620.7,2620.4,3.396]
[1726963565256,3.46452,2620.7,2620.4,3.396]
[1726963565452,3.083,2620.7,2620.4,3.396]
[1726963565857,0.38154,2620.5,2620.4,3.396]
[1726963566764,0.38158,2620.3,2619.9,3.2078]
[1726963566962,3.083,2620.7,2619.8,8.2298]
[1726963566963,1.6729,2620.6,2619.8,8.2298]
[1726963567159,0.38157,2620.4,2620.1,3.2078]
[1726963567364,3.079,2620.5,2620.0,3.2078]
[1726963567365,0.38155,2620.5,2620.0,3.2078]
[1726963567564,4.6529,2621.1,2620.0,3.2078]
[1726963567768,2.98,2621.1,2620.3,3.2078]
[1726963568063,3.2078,2621.2,2620.6,3.2078]
[1726963568064,0.38148,2621.0,2620.6,3.2078]
[1726963568267,3.46049,2620.9,2620.6,3.2078]
[1726963568564,3.46049,2620.9,2620.5,3.2078]
[1726963568761,0.38151,2620.8,2620.5,3.2078]
[1726963569160,0.38153,2620.6,2620.5,3.2078]
[1726963569559,0.38154,2620.5,2620.4,4.9497]
[1726963569759,3.46054,2620.5,2620.4,4.9497]
[1726963570358,10.25654,2620.5,2620.4,3.3404]
[1726963570559,0.38161,2620.1,2619.6,1.7567]
[1726963570763,3.079,2620.0,2619.8,3.2078]
[1726963571164,3.079,2621.0,2619.9,3.8168]
[1726963571356,3.079,2621.0,2620.5,3.2078]
[1726963571556,3.079,2621.0,2620.8,3.2078]
[1726963572065,0.38146,2621.1,2620.8,3.2078]
[1726963572261,3.079,2621.0,2620.8,3.2078]
[1726963573756,0.38149,2620.9,2620.8,3.2078]
[1726963574365,3.46048,2621.0,2620.8,3.2078]
[1726963574862,3.079,2621.0,2620.8,3.2078]
[1726963575260,3.46047,2621.0,2620.8,3.2078]
[1726963575664,3.079,2621.0,2620.8,3.2078]
[1726963575878,0.3814,2621.5,2620.8,3.2078]
[1726963576061,3.079,2621.7,2621.2,3.2078]
[1726963576270,3.079,2621.7,2620.7,3.2329]
[1726963576271,3.079,2621.7,2621.6,3.2078]